fUSD/lending_fUSD_20251103
["ID","MTS","AMOUNT","RATE_DAILY","PERIOD"]
[392994474,1762206644672,-852.467928,0.00036,30]
[392994475,1762206644681,-1575.98719,0.00036,31]
[392994476,1762206644690,-157.601264,0.00036,10]
[392994477,1762206644699,-852.467928,0.00036,30]
[392994478,1762206644708,-1575.98719,0.00036,31]
[392994479,1762206644718,-852.467928,0.00036,30]
[392994480,1762206644727,-852.467928,0.00036,30]
[392994481,1762206644736,-163.452248,0.00036,31]
[392994482,1762206644745,-151.0,0.00036,31]
[392994483,1762206644755,-163.452248,0.00036,31]
[392994484,1762206644767,-156.454501,0.00036,31]
[392994485,1762206644777,-163.452248,0.00036,31]
[392994486,1762206644787,-151.0,0.00036,31]
[392994487,1762206644796,-163.452248,0.00036,31]
[392994488,1762206644805,-151.0,0.00036,31]
[392994489,1762206644814,-151.0,0.00036,31]
[392994490,1762206644823,-151.0,0.00036,31]
[392994491,1762206644832,-216.559978,0.00036,31]
[392994492,1762206644842,-216.559978,0.00036,31]
[392994493,1762206644851,-151.0,0.00036,31]
[392994494,1762206644861,-151.0,0.00036,31]
[392994495,1762206644870,-216.559978,0.00036,31]
[392994496,1762206644880,-151.0,0.00036,31]
[392994497,1762206644889,-216.559978,0.00036,31]
[392994498,1762206644898,-151.0,0.00036,31]
[392994499,1762206644908,-199.979937,0.00036,31]
[392994500,1762206644917,-239.431653,0.00036,31]
[392994501,1762206644927,-151.0,0.00036,15]
[392994502,1762206644937,-239.431653,0.00036,31]
[392994503,1762206644948,-151.0,0.00036,15]
[392994504,1762206644958,-151.0,0.00036,31]
[392994505,1762206644968,-151.0,0.00036,31]
[392994506,1762206644978,-239.431653,0.00036,31]
[392994507,1762206644987,-151.0,0.00036,31]
[392994508,1762206644996,-151.0,0.00036,31]
[392994509,1762206645006,-151.0,0.00036,31]
[392994510,1762206645015,-239.431653,0.00036,31]
[392994511,1762206645024,-151.0,0.00036,31]
[392994512,1762206645034,-166.425213,0.00036,31]
[392994513,1762206645043,-152.793943,0.00036,31]
[392994514,1762206645054,-151.0,0.00036,31]
[392994515,1762206645064,-151.0,0.00036,31]
[392994516,1762206645073,-151.0,0.00036,31]
[392994517,1762206645082,-151.0,0.00036,31]
[392994518,1762206645092,-178.086736,0.00036,31]
[392994519,1762206645102,-151.0,0.00036,31]
[392994520,1762206645111,-542.952073,0.00036,31]
[392994521,1762206645120,-153.008316,0.00036,31]
[392994522,1762206645130,-542.952073,0.00036,31]
[392994523,1762206645139,-171.616614,0.00036,31]
[392994524,1762206645153,-155.707145,0.00036,31]
[392994525,1762206645163,-542.952073,0.00036,31]
[392994526,1762206645172,-458.126699,0.00036,31]
[392994527,1762206645181,-542.952073,0.00036,31]
[392994528,1762206645192,-458.126699,0.00036,31]
[392994529,1762206645201,-458.126699,0.00036,31]
[392994530,1762206645210,-458.126699,0.00036,31]
[392994531,1762206645222,-151.0,0.00036,31]
[392994532,1762206645231,-151.0,0.00036,31]
[392994533,1762206645241,-151.0,0.00036,31]
[392994534,1762206645250,-297.129161,0.00036,31]
[392994535,1762206645260,-151.0,0.00036,31]
[392994536,1762206645270,-2151.16814354,0.00036006,2]
[392994537,1762206645279,-1070.99108962,0.00036007,2]
[392994538,1762206645289,-1425.0,0.00036015,2]
[392994539,1762206645298,-1000.0,0.00036037,7]
[392994540,1762206645308,-3220.37634949,0.00036041,8]
[392994541,1762206645317,-1425.0,0.00036043,2]
[392994542,1762206645327,-165.64738028,0.00036065,15]
[392994543,1762206645337,-168.26926798,0.00036073,2]
[392994544,1762206645346,-2500.0,0.000361,13]
[392994545,1762206645355,-18391.1630814,0.00036103,3]
[392994546,1762206645365,-28020.4002155,0.00036113,3]
[392994547,1762206645374,-2151.16814354,0.00036123,2]
[392994548,1762206645383,-1070.99108962,0.00036124,2]
[392994549,1762206645392,-500.0,0.00036126,15]
[392994550,1762206645402,-500.0,0.00036126,15]
[392994551,1762206645411,-500.0,0.00036135,15]
[392994552,1762206645421,-150.0,0.00036135,15]
[392994553,1762206645430,-500.0,0.00036135,15]
[392994555,1762206645603,-500.0,0.00036135,15]
[392994556,1762206645612,-300.0,0.00036135,15]
[392994557,1762206645621,-500.0,0.00036136,30]
[392994558,1762206645631,-500.0,0.00036136,30]
[392994559,1762206645640,-150.0,0.00036136,30]
[392994560,1762206645649,-500.0,0.00036136,2]
[392994561,1762206645658,-284.0,0.00036136,30]
[392994562,1762206645668,-150.0,0.00036136,30]
[392994563,1762206645677,-174.76496096,0.00036136,30]
[392994564,1762206645686,-150.0,0.00036136,30]
[392994565,1762206645696,-150.0,0.00036136,30]
[392994566,1762206645705,-500.0,0.00036136,2]
[392994567,1762206645715,-1012.0,0.00036136,30]
[392994568,1762206645724,-151.0,0.00036136,31]
[392994569,1762206645733,-151.0,0.00036136,31]
[392994570,1762206645742,-542.952073,0.00036136,31]
[392994571,1762206645751,-542.952073,0.00036136,31]
[392994572,1762206645761,-542.952073,0.00036136,31]
[392994573,1762206645770,-458.126699,0.00036136,31]
[392994574,1762206645779,-542.952073,0.00036136,31]
[392994575,1762206645788,-458.126699,0.00036136,31]
[392994576,1762206645798,-458.126699,0.00036136,31]
[392994577,1762206645807,-458.126699,0.00036136,31]
[392994578,1762206645816,-151.0,0.00036136,31]
[392994579,1762206645825,-151.0,0.00036136,31]
[392994580,1762206645834,-151.0,0.00036136,31]
[392994581,1762206645843,-1000.0,0.00036162,7]
[392994582,1762206645852,-1000.0,0.00036168,7]
[392994583,1762206645862,-151.0,0.0003619,31]
[392994584,1762206645871,-151.0,0.0003619,31]
[392994585,1762206645880,-151.0,0.0003619,31]
[392994586,1762206645890,-151.0,0.0003619,31]
[392994587,1762206645900,-556.528831,0.0003619,31]
[392994588,1762206645909,-161.595887,0.0003619,31]
[392994589,1762206645919,-556.528831,0.0003619,31]
[392994590,1762206645928,-167.628736,0.0003619,31]
[392994591,1762206645937,-416.883281,0.0003619,31]
[392994592,1762206645947,-556.528831,0.0003619,31]
[392994593,1762206645956,-416.883281,0.0003619,31]
[392994594,1762206645966,-416.883281,0.0003619,31]
[392994595,1762206645975,-556.528831,0.0003619,31]
[392994596,1762206645985,-416.883281,0.0003619,31]
[392994597,1762206645994,-151.0,0.0003619,31]
[392994598,1762206646003,-151.0,0.0003619,31]
[392994599,1762206646012,-157.601264,0.0003619,10]
[392994600,1762206646021,-1575.98719,0.0003619,31]
[392994601,1762206646031,-157.601264,0.0003619,10]
[392994602,1762206646040,-1575.98719,0.0003619,31]
[392994603,1762206646049,-157.601264,0.0003619,10]
[392994604,1762206646059,-852.467928,0.0003619,30]
[392994605,1762206646070,-1575.98719,0.0003619,31]
[392994606,1762206646079,-157.601264,0.0003619,10]
[392994607,1762206646088,-852.467928,0.0003619,30]
[392994608,1762206646098,-1575.98719,0.0003619,31]
[392994609,1762206646107,-852.467928,0.0003619,30]
[392994610,1762206646117,-852.467928,0.0003619,30]
[392994611,1762206646126,-163.452248,0.0003619,31]
[392994612,1762206646136,-155.038426,0.0003619,31]
[392994613,1762206646148,-163.452248,0.0003619,31]
[392994614,1762206646157,-163.452248,0.0003619,31]
[392994615,1762206646166,-151.0,0.0003619,31]
[392994616,1762206646175,-163.452248,0.0003619,31]
[392994617,1762206646185,-177.009453,0.0003619,31]
[392994618,1762206646195,-151.0,0.0003619,31]
[392994619,1762206646204,-151.0,0.0003619,31]
[392994620,1762206646213,-216.559978,0.0003619,31]
[392994621,1762206646223,-216.559978,0.0003619,31]
[392994622,1762206646233,-151.0,0.0003619,31]
[392994623,1762206646242,-151.0,0.0003619,31]
[392994624,1762206646253,-216.559978,0.0003619,31]
[392994625,1762206646265,-151.0,0.0003619,31]
[392994627,1762206646274,-216.559978,0.0003619,31]
[392994628,1762206646283,-160.559873,0.0003619,31]
[392994629,1762206646293,-239.431653,0.0003619,31]
[392994630,1762206646303,-151.0,0.0003619,15]
[392994631,1762206646313,-239.431653,0.0003619,31]
[392994632,1762206646322,-151.0,0.0003619,15]
[392994634,1762206646331,-151.0,0.0003619,31]
[392994636,1762206646340,-151.0,0.0003619,31]
[392994637,1762206646349,-239.431653,0.0003619,31]
[392994638,1762206646359,-151.0,0.0003619,31]
[392994639,1762206646368,-151.0,0.0003619,31]
[392994640,1762206646377,-151.0,0.0003619,31]
[392994641,1762206646387,-239.431653,0.0003619,31]
[392994642,1762206646396,-211.711258,0.0003619,31]
[392994643,1762206646405,-151.0,0.0003619,31]
[392994644,1762206646415,-151.0,0.0003619,31]
[392994645,1762206646424,-151.0,0.0003619,31]
[392994646,1762206646434,-1425.0,0.00036195,2]
[392994647,1762206646443,-3300.0,0.000362,13]
[392994648,1762206646453,-225.0,0.00036214,7]
[392994649,1762206646462,-150.0,0.00036229,7]
[392994650,1762206646471,-2151.16814354,0.0003624,2]
[392994651,1762206646480,-165.64738028,0.0003624,15]
[392994652,1762206646489,-1070.99108962,0.00036241,2]
[392994653,1762206646498,-373.57058697,0.00036245,7]
[392994654,1762206646507,-168.26926798,0.00036247,2]
[392994655,1762206646516,-428.77426768,0.00036249,120]
[392994656,1762206646525,-18391.1630814,0.00036253,3]
[392994658,1762206646534,-28020.4002155,0.00036263,3]
[392994659,1762206646543,-18391.1630814,0.00036263,3]
[392994660,1762206646552,-500.0,0.00036263,15]
[392994661,1762206646561,-500.0,0.00036263,15]
[392994662,1762206646571,-554.65027273,0.00036272,15]
[392994663,1762206646580,-150.0,0.00036272,15]
[392994664,1762206646590,-500.0,0.00036272,15]
[392994665,1762206646599,-500.0,0.00036272,15]
[392994666,1762206646609,-300.0,0.00036272,15]
[392994667,1762206646618,-500.0,0.00036273,30]
[392994668,1762206646627,-160.62729338,0.00036273,30]
[392994669,1762206646636,-150.0,0.00036273,30]
[392994670,1762206646646,-500.0,0.00036273,2]
[392994671,1762206646655,-195.19136667,0.00036273,30]
[392994672,1762206646663,-263.9927127,0.00036273,30]
[392994673,1762206646672,-150.0,0.00036273,30]
[392994674,1762206646682,-500.0,0.00036273,2]
[392994675,1762206646691,-1012.0,0.00036273,30]
[392994676,1762206646700,-408.1,0.00036273,14]
[392994677,1762206646710,-151.731434,0.00036273,31]
[392994678,1762206646719,-151.0,0.00036273,31]
[392994679,1762206646728,-151.0,0.00036273,31]
[392994680,1762206646737,-151.0,0.00036273,31]
[392994681,1762206646746,-151.0,0.00036273,31]
[392994682,1762206646755,-151.0,0.00036273,31]
[392994683,1762206646764,-151.0,0.00036273,31]
[392994684,1762206646773,-151.0,0.00036273,31]
[392994685,1762206646782,-151.0,0.00036273,31]
[392994686,1762206646791,-268.240452,0.00036273,31]
[392994687,1762206646800,-151.0,0.00036273,31]
[392994688,1762206646809,-180.410312,0.00036273,31]
[392994689,1762206646818,-268.240452,0.00036273,31]
[392994690,1762206646827,-151.0,0.00036273,31]
[392994691,1762206646836,-151.0,0.00036273,30]
[392994692,1762206646845,-268.240452,0.00036273,31]
[392994693,1762206646854,-163.632111,0.00036273,31]
[392994694,1762206646863,-151.0,0.00036273,31]
[392994695,1762206646873,-268.240452,0.00036273,31]
[392994696,1762206646882,-213.211794,0.00036273,31]
[392994697,1762206646890,-151.0,0.00036273,31]
[392994698,1762206646900,-151.0,0.00036273,31]
[392994699,1762206646908,-213.211794,0.00036273,31]
[392994700,1762206646918,-213.211794,0.00036273,31]
[392994701,1762206646927,-231.946973,0.00036273,31]
[392994702,1762206646936,-213.211794,0.00036273,31]
[392994703,1762206646946,-231.946973,0.00036273,31]
[392994704,1762206646955,-344.393678,0.00036273,31]
[392994705,1762206646965,-231.946973,0.00036273,31]
[392994706,1762206646974,-344.393678,0.00036273,31]
[392994707,1762206646983,-233.531605,0.00036273,31]
[392994708,1762206646993,-231.946973,0.00036273,31]
[392994709,1762206647002,-344.393678,0.00036273,31]
[392994710,1762206647012,-233.531605,0.00036273,31]
[392994711,1762206647021,-344.393678,0.00036273,31]
[392994712,1762206647030,-233.531605,0.00036273,31]
[392994713,1762206647039,-233.531605,0.00036273,31]
[392994714,1762206647048,-181.560718,0.00036273,31]
[392994715,1762206647057,-181.560718,0.00036273,31]
[392994716,1762206647066,-181.560718,0.00036273,31]
[392994717,1762206647076,-151.0,0.00036273,31]
[392994718,1762206647085,-181.560718,0.00036273,31]
[392994719,1762206647094,-151.0,0.00036273,31]
[392994720,1762206647104,-212.011823,0.00036273,31]
[392994721,1762206647114,-212.011823,0.00036273,31]
[392994722,1762206647123,-212.011823,0.00036273,31]
[392994723,1762206647133,-212.011823,0.00036273,31]
[392994724,1762206647144,-151.0,0.00036273,31]
[392994725,1762206647155,-151.0,0.00036273,31]
[392994726,1762206647165,-206.006682,0.00036273,31]
[392994727,1762206647174,-151.0,0.00036273,31]
[392994728,1762206647184,-151.0,0.00036273,31]
[392994729,1762206647195,-151.0,0.00036273,31]
[392994730,1762206647204,-151.0,0.00036273,31]
[392994731,1762206647214,-151.0,0.00036273,31]
[392994732,1762206647225,-151.0,0.00036273,31]
[392994733,1762206647235,-151.0,0.00036273,31]
[392994734,1762206647244,-1425.0,0.00036289,2]
[392994735,1762206647254,-1000.0,0.0003629,7]
[392994736,1762206647263,-2000.0,0.000363,2]
[392994737,1762206647273,-4200.0,0.000363,13]
[392994738,1762206647283,-1425.0,0.00036336,2]
[392994739,1762206647292,-2151.16814354,0.00036357,2]
[392994740,1762206647302,-1070.99108962,0.00036358,2]
[392994741,1762206647311,-200.0,0.0003636,2]
[392994742,1762206647320,-200.0,0.0003636,2]
[392994743,1762206647330,-500.0,0.000364,15]
[392994744,1762206647339,-500.0,0.000364,15]
[392994745,1762206647349,-800.0,0.000364,13]
[392994746,1762206647358,-200.4129963,0.00036409,15]
[392994747,1762206647367,-500.0,0.00036409,15]
[392994748,1762206647376,-500.0,0.00036409,15]
[392994749,1762206647386,-300.0,0.00036409,15]
[392994750,1762206647396,-500.0,0.0003641,30]
[392994751,1762206647405,-246.23161218,0.0003641,30]
[392994752,1762206647415,-418.75406581,0.0003641,2]
[392994753,1762206647424,-152.58559931,0.0003641,30]
[392994754,1762206647434,-500.0,0.0003641,2]
[392994755,1762206647443,-1012.0,0.0003641,30]
[392994756,1762206647452,-151.0,0.0003641,31]
[392994757,1762206647461,-151.0,0.0003641,31]
[392994758,1762206647470,-151.0,0.0003641,31]
[392994759,1762206647480,-153.720104,0.0003641,31]
[392994760,1762206647489,-151.0,0.0003641,31]
[392994761,1762206647498,-151.0,0.0003641,31]
[392994762,1762206647507,-151.0,0.0003641,31]
[392994763,1762206647516,-151.0,0.0003641,31]
[392994764,1762206647526,-151.0,0.0003641,31]
[392994765,1762206647535,-151.0,0.0003641,31]
[392994766,1762206647544,-151.0,0.0003641,31]
[392994767,1762206647553,-151.0,0.0003641,31]
[392994768,1762206647563,-151.0,0.0003641,31]
[392994769,1762206647572,-151.0,0.0003641,31]
[392994770,1762206647582,-151.0,0.0003641,15]
[392994771,1762206647591,-151.0,0.0003641,15]
[392994772,1762206647600,-151.0,0.0003641,31]
[392994773,1762206647609,-165.722729,0.0003641,31]
[392994774,1762206647619,-151.0,0.0003641,31]
[392994775,1762206647628,-151.0,0.0003641,31]
[392994776,1762206647637,-239.034408,0.0003641,31]
[392994777,1762206647646,-165.64738028,0.00036416,15]
[392994778,1762206647656,-168.0,0.00036418,120]
[392994779,1762206647665,-168.26926798,0.00036421,2]
[392994780,1762206647676,-18391.1630814,0.00036425,4]
[392994781,1762206647685,-18391.1630814,0.00036435,4]
[392994782,1762206647694,-28020.4002155,0.00036435,4]
[392994783,1762206647704,-151.0,0.00036445,31]
[392994784,1762206647713,-151.0,0.00036445,31]
[392994785,1762206647722,-151.0,0.00036445,31]
[392994786,1762206647731,-151.0,0.00036445,31]
[392994787,1762206647740,-151.0,0.00036445,31]
[392994788,1762206647749,-151.0,0.00036445,31]
[392994789,1762206647759,-151.0,0.00036445,31]
[392994790,1762206647768,-151.0,0.00036445,31]
[392994791,1762206647778,-151.0,0.00036445,31]
[392994792,1762206647787,-151.0,0.00036445,31]
[392994793,1762206647799,-151.0,0.00036445,31]
[392994794,1762206647809,-151.0,0.00036445,31]
[392994795,1762206647819,-151.0,0.00036445,31]
[392994796,1762206647829,-151.0,0.00036445,31]
[392994797,1762206647838,-257.259689,0.00036445,31]
[392994798,1762206647847,-151.0,0.00036445,31]
[392994799,1762206647857,-151.0,0.00036445,31]
[392994800,1762206647866,-151.0,0.00036445,31]
[392994801,1762206647875,-151.0,0.00036445,31]
[392994802,1762206647885,-179.391308,0.00036445,31]
[392994803,1762206647894,-151.0,0.00036445,31]
[392994804,1762206647904,-179.391308,0.00036445,31]
[392994805,1762206647913,-151.0,0.00036445,31]
[392994806,1762206647922,-179.391308,0.00036445,31]
[392994807,1762206647931,-151.0,0.00036445,31]
[392994808,1762206647941,-179.391308,0.00036445,31]
[392994809,1762206647951,-151.0,0.00036445,31]
[392994810,1762206647961,-262.765243,0.00036445,31]
[392994811,1762206647971,-262.765243,0.00036445,31]
[392994812,1762206647980,-262.765243,0.00036445,31]
[392994813,1762206647990,-262.765243,0.00036445,31]
[392994814,1762206647999,-151.0,0.00036445,31]
[392994815,1762206648008,-297.731387,0.00036445,31]
[392994816,1762206648018,-151.0,0.00036445,31]
[392994817,1762206648027,-297.731387,0.00036445,31]
[392994818,1762206648038,-297.731387,0.00036445,31]
[392994819,1762206648047,-297.731387,0.00036445,31]
[392994820,1762206648057,-153.0,0.00036452,90]
[392994821,1762206648067,-153.0,0.00036453,90]
[392994822,1762206648076,-1425.0,0.00036455,2]
[392994823,1762206648086,-153.0,0.00036462,90]
[392994824,1762206648096,-153.0,0.00036463,90]
[392994825,1762206648106,-153.0,0.00036463,90]
[392994826,1762206648115,-1425.0,0.00036464,2]
[392994827,1762206648125,-2151.16814354,0.00036473,2]
[392994828,1762206648134,-1070.99108962,0.00036474,2]
[392994829,1762206648299,-1425.0,0.0003648,2]
[392994830,1762206648309,-300.0,0.00036482,60]
[392994831,1762206648319,-153.0,0.00036499,90]
[392994832,1762206648329,-153.0,0.000365,90]
[392994833,1762206648338,-500.0,0.000365,120]
[392994834,1762206648347,-800.0,0.000365,13]
[392994835,1762206648356,-153.0,0.0003651,90]
[392994836,1762206648365,-18391.1630814,0.00036527,4]
[392994837,1762206648375,-500.0,0.00036537,15]
[392994838,1762206648384,-500.0,0.00036537,15]
[392994839,1762206648395,-151.0,0.00036537,15]
[392994840,1762206648404,-151.0,0.00036537,15]
[392994841,1762206648414,-151.0,0.00036537,31]
[392994842,1762206648423,-151.0,0.00036537,31]
[392994843,1762206648433,-151.0,0.00036537,31]
[392994844,1762206648443,-156.088921,0.00036537,31]
[392994845,1762206648453,-151.0,0.00036537,31]
[392994846,1762206648462,-151.0,0.00036537,31]
[392994847,1762206648472,-151.0,0.00036537,31]
[392994848,1762206648481,-151.0,0.00036537,31]
[392994849,1762206648491,-151.0,0.00036537,31]
[392994850,1762206648500,-151.0,0.00036537,31]
[392994851,1762206648510,-542.952073,0.00036537,31]
[392994852,1762206648519,-542.952073,0.00036537,31]
[392994853,1762206648528,-542.952073,0.00036537,31]
[392994854,1762206648537,-458.126699,0.00036537,31]
[392994855,1762206648547,-542.952073,0.00036537,31]
[392994856,1762206648556,-458.126699,0.00036537,31]
[392994857,1762206648566,-458.126699,0.00036537,31]
[392994858,1762206648575,-458.126699,0.00036537,31]
[392994859,1762206648585,-151.0,0.00036537,31]
[392994860,1762206648594,-151.0,0.00036537,31]
[392994861,1762206648604,-151.0,0.00036537,31]
[392994862,1762206648613,-28020.4002155,0.00036537,4]
[392994863,1762206648623,-500.0,0.00036546,15]
[392994864,1762206648632,-427.50752535,0.00036546,15]
[392994865,1762206648641,-300.0,0.00036546,15]
[392994866,1762206648651,-500.0,0.00036547,30]
[392994867,1762206648660,-500.0,0.00036547,2]
[392994868,1762206648669,-1012.0,0.00036547,30]
[392994869,1762206648678,-408.1,0.00036547,14]
[392994870,1762206648687,-151.0,0.00036547,31]
[392994871,1762206648699,-151.0,0.00036547,31]
[392994872,1762206648708,-165.882504,0.00036547,31]
[392994873,1762206648717,-151.0,0.00036547,31]
[392994874,1762206648726,-151.0,0.00036547,31]
[392994875,1762206648735,-151.0,0.00036547,31]
[392994876,1762206648745,-192.6079,0.00036547,31]
[392994877,1762206648754,-151.0,0.00036547,7]
[392994878,1762206648763,-151.0,0.00036547,31]
[392994879,1762206648772,-151.0,0.00036547,31]
[392994880,1762206648781,-219.791894,0.00036547,31]
[392994881,1762206648790,-151.0,0.00036547,31]
[392994882,1762206648799,-1425.0,0.00036549,2]
[392994883,1762206648808,-151.0,0.00036549,31]
[392994884,1762206648818,-151.0,0.00036549,31]
[392994885,1762206648827,-151.0,0.00036549,31]
[392994886,1762206648837,-151.0,0.00036549,31]
[392994887,1762206648846,-151.0,0.00036549,31]
[392994888,1762206648855,-151.0,0.00036549,31]
[392994889,1762206648864,-151.0,0.00036549,31]
[392994890,1762206648874,-151.0,0.00036549,31]
[392994891,1762206648883,-151.0,0.00036549,31]
[392994892,1762206648892,-153.454905,0.00036549,31]
[392994893,1762206648901,-151.0,0.0003658,31]
[392994894,1762206648910,-151.0,0.0003658,31]
[392994895,1762206648919,-151.0,0.0003658,31]
[392994896,1762206648929,-153.083036,0.0003658,31]
[392994897,1762206648939,-151.0,0.0003658,31]
[392994898,1762206648950,-151.0,0.0003658,31]
[392994899,1762206648959,-151.0,0.0003658,31]
[392994900,1762206648969,-151.0,0.0003658,31]
[392994901,1762206648978,-225.900405,0.0003658,31]
[392994902,1762206648988,-154.067118,0.0003658,31]
[392994903,1762206648997,-151.0,0.0003658,31]
[392994904,1762206649007,-151.0,0.0003658,31]
[392994905,1762206649016,-225.900405,0.0003658,31]
[392994906,1762206649025,-151.0,0.0003658,31]
[392994907,1762206649035,-225.900405,0.0003658,31]
[392994908,1762206649045,-151.0,0.0003658,31]
[392994909,1762206649054,-225.900405,0.0003658,31]
[392994910,1762206649064,-156.437433,0.0003658,31]
[392994911,1762206649074,-159.49417,0.0003658,31]
[392994912,1762206649083,-151.0,0.0003658,31]
[392994913,1762206649092,-151.0,0.0003658,31]
[392994914,1762206649102,-151.0,0.0003658,31]
[392994915,1762206649112,-235.22591,0.0003658,31]
[392994916,1762206649121,-168.0,0.0003658,7]
[392994917,1762206649131,-1000.0,0.00036581,7]
[392994918,1762206649140,-18391.1630814,0.00036583,4]
[392994919,1762206649154,-1000.0,0.00036585,7]
[392994920,1762206649164,-18391.1630814,0.00036585,4]
[392994921,1762206649173,-151.0,0.0003659,14]
[392994922,1762206649183,-2151.16814354,0.0003659,2]
[392994923,1762206649194,-165.64738028,0.00036591,15]
[392994924,1762206649204,-1070.99108962,0.00036591,2]
[392994925,1762206649214,-2000.0,0.00036592,2]
[392994926,1762206649224,-151.0,0.00036592,31]
[392994927,1762206649234,-151.0,0.00036592,31]
[392994928,1762206649244,-151.0,0.00036592,31]
[392994929,1762206649253,-151.0,0.00036592,31]
[392994930,1762206649263,-151.0,0.00036592,31]
[392994931,1762206649272,-196.589911,0.00036592,31]
[392994932,1762206649281,-236.023466,0.00036592,31]
[392994933,1762206649293,-151.0,0.00036592,31]
[392994934,1762206649302,-235.830852,0.00036592,31]
[392994935,1762206649312,-235.830852,0.00036592,31]
[392994936,1762206649321,-235.830852,0.00036592,31]
[392994937,1762206649330,-235.830852,0.00036592,31]
[392994938,1762206649340,-28020.4002155,0.00036592,4]
[392994939,1762206649349,-6214.0,0.00036593,5]
[392994940,1762206649359,-2000.0,0.00036594,2]
[392994941,1762206649368,-168.26926798,0.00036594,2]
[392994942,1762206649378,-1999.98,0.00036595,2]
[392994943,1762206649387,-1425.0,0.00036595,2]
[392994944,1762206649397,-1999.98,0.00036597,2]
[392994945,1762206649406,-334.0,0.00036599,7]
[392994946,1762206649416,-800.0,0.000366,13]
[392994947,1762206649425,-151.0,0.00036602,31]
[392994948,1762206649436,-151.0,0.00036602,31]
[392994949,1762206649446,-151.0,0.00036602,31]
[392994950,1762206649456,-220.775732,0.00036602,31]
[392994951,1762206649465,-556.528831,0.00036602,31]
[392994952,1762206649474,-556.528831,0.00036602,31]
[392994953,1762206649484,-416.883281,0.00036602,31]
[392994954,1762206649493,-556.528831,0.00036602,31]
[392994955,1762206649503,-416.883281,0.00036602,31]
[392994956,1762206649512,-416.883281,0.00036602,31]
[392994957,1762206649521,-556.528831,0.00036602,31]
[392994958,1762206649531,-416.883281,0.00036602,31]
[392994959,1762206649541,-188.494499,0.00036602,31]
[392994960,1762206649550,-157.601264,0.00036602,10]
[392994961,1762206649559,-1575.98719,0.00036602,31]
[392994962,1762206649569,-157.601264,0.00036602,10]
[392994963,1762206649578,-1575.98719,0.00036602,31]
[392994964,1762206649588,-157.601264,0.00036602,10]
[392994965,1762206649598,-852.467928,0.00036602,30]
[392994966,1762206649607,-157.601264,0.00036602,10]
[392994967,1762206649616,-1575.98719,0.00036602,31]
[392994968,1762206649625,-852.467928,0.00036602,30]
[392994969,1762206649635,-1575.98719,0.00036602,31]
[392994970,1762206649644,-852.467928,0.00036602,30]
[392994971,1762206649653,-852.467928,0.00036602,30]
[392994972,1762206649663,-163.452248,0.00036602,31]
[392994973,1762206649672,-163.452248,0.00036602,31]
[392994974,1762206649681,-163.452248,0.00036602,31]
[392994975,1762206649690,-151.0,0.00036602,31]
[392994976,1762206649701,-163.452248,0.00036602,31]
[392994977,1762206649711,-151.0,0.00036602,31]
[392994978,1762206649720,-216.559978,0.00036602,31]